bitfinex/quotes_BTCUSD_20241103
["timestamp","ask_amount","ask_price","bid_price","bid_amount"]
[1730606518985,0.294541,68380.0,68379.0,0.001654]
[1730606519229,1.25411778,68380.0,68379.0,0.001654]
[1730606519476,1.18466005,68380.0,68379.0,0.001654]
[1730606519684,0.97399241,68380.0,68379.0,0.001654]
[1730606519935,0.97599241,68380.0,68379.0,0.001654]
[1730606520169,1.12668296,68380.0,68379.0,0.001654]
[1730606521690,1.11268296,68380.0,68379.0,0.001654]
[1730606522311,1.14068296,68380.0,68379.0,0.001654]
[1730606522726,1.11268296,68380.0,68379.0,0.001654]
[1730606523359,1.12668296,68380.0,68379.0,0.001654]
[1730606523823,1.11268296,68380.0,68379.0,0.001654]
[1730606524271,1.12668296,68380.0,68379.0,0.001654]
[1730606524479,1.23393795,68380.0,68379.0,0.001654]
[1730606524698,1.21993795,68380.0,68379.0,0.001654]
[1730606525138,1.18839875,68380.0,68379.0,0.001654]
[1730606525361,1.23385371,68380.0,68379.0,0.001654]
[1730606525574,1.07914376,68380.0,68379.0,0.001654]
[1730606526022,1.09314376,68380.0,68379.0,0.001654]
[1730606526262,1.07914376,68380.0,68379.0,0.001654]
[1730606526702,1.09514376,68380.0,68379.0,0.001654]
[1730606526910,1.2043817,68380.0,68379.0,0.001654]
[1730606527152,1.09514376,68380.0,68379.0,0.001654]
[1730606528455,1.31701071,68380.0,68379.0,0.001654]
[1730606529951,1.31782559,68380.0,68379.0,0.001654]
[1730606530651,1.23046537,68380.0,68379.0,0.001654]
[1730606530868,1.31782559,68380.0,68379.0,0.001654]
[1730606531095,1.31777888,68380.0,68379.0,0.001654]
[1730606532395,1.23046537,68380.0,68379.0,0.001654]
[1730606533528,1.21682959,68380.0,68379.0,0.001654]
[1730606533731,1.23046365,68380.0,68379.0,0.001654]
[1730606534398,0.002,68377.0,68376.0,0.001654]
[1730606534611,0.9190091,68377.0,68376.0,0.001654]
[1730606534847,0.94288551,68377.0,68376.0,0.001654]
[1730606535710,1.10162087,68377.0,68376.0,0.001654]
[1730606535917,1.12962087,68377.0,68376.0,0.001654]
[1730606536142,1.21842074,68377.0,68376.0,0.001654]
[1730606537268,1.29778842,68377.0,68376.0,0.001654]
[1730606538583,1.34142404,68377.0,68376.0,0.001654]
[1730606539247,1.29778842,68377.0,68376.0,0.001654]
[1730606539680,1.34139847,68377.0,68376.0,0.001654]
[1730606539907,1.34139823,68377.0,68376.0,0.001654]
[1730606540144,1.34139823,68377.0,68371.0,0.001654]
[1730606540145,0.002,68372.0,68371.0,0.001654]
[1730606540356,0.246273,68365.0,68361.0,0.22058661]
[1730606540586,1.10213672,68365.0,68361.0,0.22058661]
[1730606540812,1.10213736,68365.0,68358.0,0.0106749]
[1730606541031,1.2479631,68365.0,68358.0,0.0106749]
[1730606541686,1.21021221,68365.0,68358.0,0.0106749]
[1730606542340,1.20993521,68365.0,68358.0,0.0106749]
[1730606542549,1.22393521,68365.0,68358.0,0.0106749]
[1730606542776,1.20993521,68365.0,68358.0,0.0106749]
[1730606542978,1.20993521,68365.0,68364.0,1e-06]
[1730606543213,1.22393521,68365.0,68364.0,1e-06]
[1730606543447,1.22393521,68365.0,68358.0,9e-07]
[1730606543448,0.002,68359.0,68358.0,9e-07]
[1730606543657,1.16101668,68359.0,68358.0,9e-07]
[1730606543875,1.18487526,68359.0,68358.0,9e-07]
[1730606544333,1.06389079,68359.0,68358.0,9e-07]
[1730606544998,1.18487526,68359.0,68358.0,9e-07]
[1730606545219,1.30130726,68359.0,68358.0,9e-07]
[1730606545439,1.31530726,68359.0,68358.0,9e-07]
[1730606545908,1.32930726,68359.0,68358.0,9e-07]
[1730606546128,1.31530726,68359.0,68358.0,9e-07]
[1730606546549,1.32930726,68359.0,68358.0,9e-07]
[1730606546788,1.31530726,68359.0,68358.0,9e-07]
[1730606547009,1.19432279,68359.0,68358.0,9e-07]
[1730606547291,1.20632279,68359.0,68358.0,9e-07]
[1730606548612,1.20832279,68359.0,68358.0,9e-07]
[1730606549245,1.32930726,68359.0,68358.0,9e-07]
[1730606549890,1.20832279,68359.0,68358.0,9e-07]
[1730606552279,1.20632279,68359.0,68358.0,9e-07]
[1730606552946,1.20631975,68359.0,68358.0,9e-07]
[1730606553169,1.20831975,68359.0,68358.0,9e-07]
[1730606553823,1.20831975,68359.0,68358.0,0.0016409]
[1730606554028,1.20913975,68359.0,68358.0,0.0016409]
[1730606554742,1.20713975,68359.0,68358.0,0.0016409]
[1730606555003,1.20713789,68359.0,68358.0,0.0016409]
[1730606555624,1.20913789,68359.0,68358.0,0.0016409]
[1730606556713,1.20713789,68359.0,68358.0,0.0016409]
[1730606557837,1.09070589,68359.0,68358.0,0.0016409]
[1730606558075,1.09070589,68359.0,68358.0,0.0478409]
[1730606558313,1.09070589,68359.0,68358.0,0.1288409]
[1730606558518,1.07707609,68359.0,68358.0,0.1288409]
[1730606558730,1.06307609,68359.0,68358.0,0.1288409]
[1730606559176,1.18269382,68359.0,68358.0,0.1288409]
[1730606559401,1.16869382,68359.0,68358.0,0.1288409]
[1730606559626,1.18269382,68359.0,68358.0,0.1288409]
[1730606560078,0.95609162,68359.0,68358.0,0.1288409]
[1730606560280,0.94209162,68359.0,68358.0,0.1288409]
[1730606560747,1.06307609,68359.0,68358.0,0.1288409]
[1730606560957,0.85609162,68359.0,68358.0,0.1288409]
[1730606561165,0.84209162,68359.0,68358.0,0.1288409]
[1730606561398,0.82809162,68359.0,68358.0,0.1288409]
[1730606561630,0.85609162,68359.0,68358.0,0.1288409]
[1730606561839,0.69629458,68359.0,68358.0,0.1288409]
[1730606562049,0.71029458,68359.0,68358.0,0.1288409]
[1730606562829,0.69629458,68359.0,68358.0,0.1288409]
[1730606563303,0.04770858,68359.0,68358.0,0.42971041]
[1730606563515,0.000819,68380.0,68376.0,0.15215]
[1730606563981,0.24496896,68377.0,68376.0,0.15215]
[1730606564207,0.02438235,68377.0,68376.0,0.15215]
[1730606564661,0.02538235,68377.0,68376.0,0.15415]
[1730606564884,0.02538235,68377.0,68376.0,0.15515]
[1730606564885,0.02638235,68377.0,68376.0,0.15515]
[1730606565107,0.001,68377.0,68376.0,0.15315]
[1730606565343,0.002,68377.0,68376.0,0.16015]
[1730606565555,0.001,68377.0,68376.0,0.16207436]
[1730606565785,0.000819,68380.0,68379.0,0.146243]
[1730606566009,0.000819,68380.0,68379.0,0.156243]
[1730606566451,0.000819,68380.0,68379.0,0.1591673]
[1730606566721,0.000819,68380.0,68379.0,0.15916728]
[1730606567155,0.000819,68380.0,68379.0,0.156243]
[1730606568067,0.001819,68380.0,68379.0,0.157243]
[1730606568504,0.001819,68380.0,68379.0,0.163243]
[1730606568937,0.002819,68380.0,68379.0,0.164243]
[1730606572086,0.002819,68380.0,68379.0,0.16716729]
[1730606577922,0.002819,68380.0,68379.0,0.164243]
[1730606580300,0.002819,68380.0,68379.0,0.16716728]
[1730606581230,0.002819,68380.0,68379.0,0.43894879]
[1730606581443,0.002819,68380.0,68379.0,0.42094004]
[1730606581667,0.002819,68380.0,68379.0,0.42294004]
[1730606582164,0.000819,68388.0,68387.0,0.164126]
[1730606582421,0.000819,68388.0,68387.0,0.43383137]
[1730606582659,0.000819,68388.0,68387.0,0.53090751]
[1730606583299,0.000819,68388.0,68387.0,0.53590751]
[1730606585213,0.000819,68388.0,68387.0,0.54890751]
[1730606585882,0.000819,68388.0,68387.0,0.57815751]
[1730606586108,0.000819,68388.0,68387.0,0.58415751]
[1730606587513,0.000819,68388.0,68387.0,0.58776458]
[1730606587735,0.000819,68388.0,68387.0,0.59776458]
[1730606590255,1e-06,68388.0,68387.0,0.59776458]
[1730606592014,0.22058661,68429.0,68427.0,0.156141]
[1730606592487,0.22058661,68429.0,68427.0,0.161141]
[1730606592710,0.000819,68433.0,68427.0,0.161141]
[1730606593167,0.000819,68433.0,68427.0,0.167141]
[1730606594258,0.000819,68433.0,68432.0,0.16113]
[1730606594471,0.000819,68433.0,68432.0,0.16405203]
[1730606596341,0.000819,68433.0,68432.0,0.17005203]
[1730606596736,0.001819,68433.0,68432.0,0.18405203]
[1730606596912,0.001819,68433.0,68432.0,0.32984907]
[1730606597114,0.001819,68433.0,68432.0,0.32692704]
[1730606598893,0.001819,68433.0,68432.0,0.33192704]
[1730606599535,0.001819,68433.0,68432.0,0.55491151]
[1730606600910,0.000819,68433.0,68432.0,0.54091151]
[1730606601359,0.000819,68433.0,68432.0,0.53491151]
[1730606601586,0.000819,68433.0,68432.0,0.54091151]
[1730606602202,0.00902,68444.0,68443.0,0.161106]
[1730606602411,0.00902,68444.0,68443.0,0.31182437]
[1730606602626,0.00902,68444.0,68443.0,0.30890304]
[1730606603062,0.00902,68444.0,68443.0,0.30690304]
[1730606603503,0.00902,68444.0,68443.0,0.31490304]
[1730606603946,0.00902,68444.0,68443.0,0.32690304]
[1730606604344,0.00902,68444.0,68443.0,0.43190304]
[1730606604891,0.00902,68444.0,68443.0,0.42990304]
[1730606606242,0.00902,68444.0,68443.0,0.43350479]
[1730606607619,0.00902,68444.0,68443.0,0.42490304]
[1730606607835,0.08612,68444.0,68443.0,0.42490304]
[1730606610237,0.08612,68444.0,68443.0,0.279106]
[1730606610846,0.08612,68444.0,68443.0,0.308356]
[1730606611017,0.08612,68444.0,68443.0,0.279106]
[1730606611222,0.08612,68444.0,68443.0,0.179106]
[1730606611448,0.086938,68444.0,68443.0,0.174106]
[1730606611634,0.086938,68444.0,68443.0,0.179106]
[1730606611832,0.086938,68444.0,68443.0,0.174106]
[1730606612042,0.086938,68444.0,68443.0,0.179106]
[1730606612276,0.086938,68444.0,68443.0,0.174106]
[1730606612917,0.08025989,68444.0,68443.0,0.174106]
[1730606613453,0.08025989,68444.0,68443.0,0.179106]
[1730606613668,0.08025989,68444.0,68443.0,0.174106]
[1730606614141,0.08025989,68444.0,68443.0,0.179106]
[1730606616277,0.08025989,68444.0,68443.0,0.174106]
[1730606617155,0.08025989,68444.0,68443.0,0.179106]
[1730606619585,0.08025989,68444.0,68443.0,0.174106]
[1730606620210,0.08025989,68444.0,68443.0,0.023]
[1730606620447,0.08025989,68444.0,68443.0,0.169106]
[1730606621097,0.08025989,68444.0,68443.0,0.157106]
[1730606621573,0.07025989,68444.0,68443.0,0.157106]
[1730606621737,0.07025989,68444.0,68443.0,0.164106]
[1730606621938,0.07025989,68444.0,68443.0,0.170106]
[1730606622336,0.07025989,68444.0,68443.0,0.151106]
[1730606622561,0.07025989,68444.0,68443.0,0.164106]
[1730606622791,0.07025989,68444.0,68443.0,0.170106]
[1730606623031,0.07025989,68444.0,68443.0,0.171742]
[1730606627311,0.07025989,68444.0,68443.0,0.176742]
[1730606630084,0.07025989,68444.0,68443.0,0.17966378]
[1730606630303,0.07025989,68444.0,68443.0,0.176742]
[1730606635267,0.07025989,68444.0,68443.0,0.18407023]
[1730606635486,0.07025989,68444.0,68443.0,0.176742]
[1730606635940,0.07025989,68444.0,68443.0,0.33279367]
[1730606636160,0.07025989,68444.0,68443.0,0.39491589]
[1730606636400,0.07025989,68444.0,68443.0,0.37355232]
[1730606636643,0.07025989,68444.0,68443.0,0.176742]
[1730606637285,0.07025989,68444.0,68443.0,0.18407493]
[1730606637742,0.07025989,68444.0,68443.0,0.176742]
[1730606638163,0.08395753,68444.0,68443.0,0.176742]
[1730606638792,0.08395753,68444.0,68443.0,0.22042235]
[1730606639216,0.01451564,68444.0,68443.0,0.37414112]
[1730606639456,0.01451564,68444.0,68443.0,0.33487484]
[1730606640344,0.000818,68444.0,68443.0,0.49606472]
[1730606641198,0.01451748,68444.0,68443.0,0.56156444]
[1730606641428,0.000818,68444.0,68443.0,0.56156444]
[1730606642110,0.000818,68444.0,68443.0,0.55422864]
[1730606642332,0.045918,68444.0,68443.0,0.25457619]
[1730606642550,0.045918,68444.0,68443.0,0.176742]
[1730606642551,0.13901511,68444.0,68443.0,0.176742]
[1730606643632,0.13901511,68444.0,68443.0,0.181742]
[1730606643843,0.13901511,68444.0,68443.0,0.176742]
[1730606644064,0.13901511,68444.0,68443.0,0.181742]
[1730606645193,0.13901511,68444.0,68443.0,0.176742]
[1730606647986,0.13901511,68444.0,68443.0,0.025636]
[1730606648232,0.16509697,68444.0,68443.0,0.025636]
[1730606648443,0.16509844,68444.0,68443.0,0.025636]
[1730606648667,0.31120244,68444.0,68443.0,0.025636]
[1730606648873,0.16509844,68444.0,68443.0,0.025636]
[1730606649071,0.28512058,68444.0,68443.0,0.025636]
[1730606650569,0.28512058,68444.0,68443.0,0.020636]
[1730606651399,0.271422,68444.0,68443.0,0.020636]
[1730606651615,0.271422,68444.0,68443.0,0.014636]
[1730606652027,0.782792,68444.0,68443.0,0.015636]
[1730606652722,0.782792,68444.0,68443.0,0.002636]
[1730606653131,0.785792,68444.0,68443.0,0.003636]
[1730606653369,1.02871066,68444.0,68443.0,0.003636]
[1730606653826,0.93158904,68444.0,68443.0,0.003636]
[1730606655596,0.78548504,68444.0,68435.0,0.005]
[1730606655826,0.26710547,68436.0,68435.0,0.005]
[1730606656031,0.90217547,68436.0,68435.0,0.005]
[1730606656236,0.90217547,68436.0,68428.0,0.22222261]
[1730606656237,0.26983,68432.0,68431.0,0.005]
[1730606656449,0.87141845,68432.0,68431.0,0.005]
[1730606657304,0.269836,68429.0,68428.0,0.001636]
[1730606657492,0.781206,68429.0,68428.0,0.001636]
[1730606657900,0.781206,68429.0,68428.0,0.006636]
[1730606658512,0.781206,68429.0,68428.0,0.019636]
[1730606658704,0.781206,68429.0,68428.0,0.025636]
[1730606664259,0.81612657,68429.0,68428.0,0.025636]
[1730606664842,0.781206,68429.0,68428.0,0.025636]
[1730606665625,0.86040586,68429.0,68428.0,0.025636]
[1730606670374,0.781206,68429.0,68428.0,0.025636]
[1730606680220,0.63507,68429.0,68428.0,0.025636]
[1730606680489,0.58787,68429.0,68428.0,0.176775]
[1730606680717,0.51137,68429.0,68428.0,0.176775]
[1730606680945,0.51137,68429.0,68428.0,0.18410009]
[1730606681159,0.51137,68429.0,68428.0,0.176775]
[1730606681388,0.51137,68429.0,68428.0,0.18410009]
[1730606681609,0.51137,68429.0,68428.0,0.176775]
[1730606681854,0.51137,68429.0,68428.0,0.18410009]
[1730606682504,0.51137,68429.0,68428.0,0.176775]
[1730606682724,0.51137,68429.0,68428.0,0.18410009]
[1730606682939,0.51137,68429.0,68428.0,0.176775]
[1730606683164,0.51137,68429.0,68428.0,0.18410009]
[1730606683387,0.51137,68429.0,68428.0,0.176775]
[1730606683601,0.51137,68429.0,68428.0,0.18410009]
[1730606684039,0.51137,68429.0,68428.0,0.176775]
[1730606685115,0.51137,68429.0,68428.0,0.030636]
[1730606685339,0.51137,68429.0,68428.0,0.176775]
[1730606686670,0.51137,68429.0,68428.0,0.030636]
[1730606687344,0.51137,68429.0,68428.0,0.176775]
[1730606687573,0.787006,68429.0,68428.0,0.025636]
[1730606689181,0.64087,68429.0,68428.0,0.025636]
[1730606689409,0.64087,68429.0,68428.0,0.171775]
[1730606690758,0.64087,68429.0,68428.0,0.025636]
[1730606691419,0.64087,68429.0,68428.0,0.171775]
[1730606692541,0.64087,68429.0,68428.0,0.025636]
[1730606692971,0.64087,68429.0,68428.0,0.171775]
[1730606693660,0.64087,68429.0,68428.0,0.176775]
[1730606695844,0.64087,68429.0,68428.0,0.030636]
[1730606696328,0.64087,68429.0,68428.0,0.176775]
[1730606699252,0.64087,68429.0,68428.0,0.030636]
[1730606699455,0.64087,68429.0,68428.0,0.171775]
[1730606700136,0.787006,68429.0,68428.0,0.025636]
[1730606701501,0.75388384,68429.0,68428.0,0.025636]
[1730606701720,0.64087,68429.0,68428.0,0.025636]
[1730606701938,0.787006,68429.0,68428.0,0.025636]
[1730606710681,0.64087,68429.0,68428.0,0.025636]
[1730606711080,0.787006,68429.0,68428.0,0.025636]
[1730606712675,0.64087,68429.0,68428.0,0.025636]
[1730606713146,0.787006,68429.0,68428.0,0.02921901]
[1730606713367,0.787006,68429.0,68428.0,0.03654373]
[1730606713787,0.787006,68429.0,68428.0,0.02921901]
[1730606716268,0.787006,68429.0,68428.0,0.03654374]
[1730606717324,0.787006,68429.0,68428.0,0.02921901]
[1730606717692,0.787006,68429.0,68428.0,0.03654312]
[1730606721196,0.787006,68429.0,68428.0,0.03654223]
[1730606723052,0.787006,68429.0,68428.0,0.03295922]
[1730606729919,0.80071407,68429.0,68428.0,0.03295922]
[1730606730737,0.65457807,68429.0,68428.0,0.03295922]
[1730606731751,0.65457807,68429.0,68428.0,0.17909822]
[1730606732802,0.52507807,68429.0,68428.0,0.18409822]
[1730606733031,0.52507807,68429.0,68428.0,0.22780995]
[1730606733257,0.52507807,68429.0,68428.0,0.18409822]
[1730606733500,0.52507807,68429.0,68428.0,0.22780491]
[1730606734403,0.52507807,68429.0,68428.0,0.22048169]
[1730606734809,0.51137,68429.0,68428.0,0.22048169]
[1730606736598,0.52507508,68429.0,68428.0,0.22780603]
[1730606738491,0.51137,68429.0,68428.0,0.22780603]
[1730606739569,0.51137,68429.0,68428.0,0.18409934]
[1730606739962,0.51137,68429.0,68428.0,0.22779018]
[1730606740396,0.51137,68429.0,68428.0,0.18409934]
[1730606740608,0.51137,68429.0,68428.0,0.22779018]
[1730606741047,0.51137,68429.0,68428.0,0.176775]
[1730606742356,0.51137,68429.0,68428.0,0.1841021]
[1730606742767,0.51137,68429.0,68428.0,0.18410151]
[1730606743198,0.52507256,68429.0,68428.0,0.1841015]
[1730606744263,0.52507256,68429.0,68428.0,0.22779234]
[1730606744490,0.52507256,68429.0,68428.0,0.1841015]
[1730606744703,0.52507256,68429.0,68428.0,0.22781283]
[1730606745130,0.52507256,68429.0,68428.0,0.22781186]
[1730606745344,0.52507256,68429.0,68428.0,0.22780983]
[1730606747054,0.51137,68429.0,68428.0,0.22780983]
[1730606747271,0.52506565,68429.0,68428.0,0.22780983]
[1730606747480,0.52506472,68429.0,68428.0,0.22780983]
[1730606749178,0.52506399,68429.0,68428.0,0.1841015]
[1730606749396,0.51137,68429.0,68428.0,0.22780591]
[1730606753950,0.51137,68429.0,68428.0,0.22780987]
[1730606754156,0.51137,68429.0,68428.0,0.22780743]
[1730606756377,0.55757,68429.0,68428.0,0.22780743]
[1730606757435,0.55757,68429.0,68428.0,0.22048337]
[1730606757619,0.55757,68429.0,68428.0,0.18410184]
[1730606760458,0.57126868,68429.0,68428.0,0.18410184]
[1730606761088,0.64916868,68429.0,68428.0,0.18410184]
[1730606762584,0.64916868,68429.0,68428.0,0.19582555]
[1730606763511,0.64917551,68429.0,68428.0,0.19585218]
[1730606763995,0.63547,68429.0,68428.0,0.19585264]
[1730606764204,0.64917612,68429.0,68428.0,0.19585264]
[1730606765263,0.64917612,68429.0,68428.0,0.261451]
[1730606766378,0.64917612,68429.0,68428.0,0.19585264]
[1730606766661,0.64917612,68429.0,68428.0,0.26149995]
[1730606766979,0.64917623,68429.0,68428.0,0.26149995]
[1730606768096,0.64917623,68429.0,68428.0,0.11536095]
[1730606768305,0.86022985,68429.0,68428.0,0.03297326]
[1730606768511,0.79531223,68429.0,68428.0,0.03297326]
[1730606771359,0.79531223,68429.0,68428.0,0.025636]
[1730606771639,0.79531223,68429.0,68428.0,0.03297092]
[1730606772069,0.79531223,68429.0,68428.0,0.025636]
[1730606772288,0.79531223,68429.0,68428.0,0.025136]
[1730606773367,0.87449731,68429.0,68428.0,0.025136]
[1730606775503,0.79531223,68429.0,68428.0,0.025136]
[1730606775711,0.82277965,68429.0,68428.0,0.025136]
[1730606777496,0.80907342,68429.0,68428.0,0.025136]
[1730606777724,0.79530086,68429.0,68428.0,0.025136]
[1730606779737,0.87448594,68429.0,68428.0,0.025136]
[1730606780821,0.79530086,68429.0,68428.0,0.025136]
[1730606781021,0.79529968,68429.0,68428.0,0.025136]
[1730606784297,0.64916368,68429.0,68428.0,0.025136]
[1730606784524,0.79529968,68429.0,68428.0,0.025136]
[1730606784756,0.79529873,68429.0,68428.0,0.025136]
[1730606784976,0.64998173,68429.0,68428.0,0.025136]
[1730606785198,0.636289,68429.0,68428.0,0.025136]
[1730606785410,0.64998161,68429.0,68428.0,0.025136]
[1730606786091,0.79611761,68429.0,68428.0,0.025136]
[1730606786340,0.52588161,68429.0,68428.0,0.18593304]
[1730606786532,0.512189,68429.0,68428.0,0.6299308]
[1730606786710,0.512189,68429.0,68428.0,0.79585007]
[1730606786951,0.512189,68429.0,68428.0,0.83754774]
[1730606787153,0.512189,68429.0,68428.0,0.83954774]
[1730606787353,0.512189,68429.0,68428.0,0.71734169]
[1730606787554,0.512189,68429.0,68428.0,0.82443613]
[1730606787765,0.512189,68429.0,68428.0,0.82043613]
[1730606788007,0.512189,68429.0,68428.0,0.81842639]
[1730606788214,0.512189,68429.0,68428.0,0.70933195]
[1730606789171,0.512189,68429.0,68428.0,0.71533195]
[1730606789385,0.512189,68429.0,68428.0,0.72833195]
[1730606789578,0.512189,68429.0,68428.0,0.72233195]
[1730606789816,0.512189,68429.0,68428.0,0.71133195]
[1730606790171,0.512189,68429.0,68428.0,0.72933195]
[1730606790376,0.512189,68429.0,68428.0,0.73298067]
[1730606790776,0.512189,68429.0,68428.0,0.70373067]
[1730606791477,0.512189,68429.0,68428.0,0.70371923]
[1730606792078,0.512189,68429.0,68428.0,0.70171923]
[1730606792285,0.512189,68429.0,68428.0,0.69002606]
[1730606793637,0.512189,68429.0,68428.0,0.68232606]
[1730606795034,0.512189,68429.0,68428.0,0.68232063]
[1730606795269,0.512189,68429.0,68428.0,0.78401167]
[1730606795506,0.512189,68429.0,68428.0,0.68232081]
[1730606795717,0.512189,68429.0,68428.0,0.60313573]
[1730606797150,0.512189,68429.0,68428.0,0.68232081]
[1730606797271,0.512189,68429.0,68428.0,0.76949185]
[1730606797678,0.512189,68429.0,68428.0,0.68232081]
[1730606798322,0.512189,68429.0,68428.0,0.76950046]
[1730606798532,0.512189,68429.0,68428.0,0.76929537]
[1730606800394,0.512189,68429.0,68428.0,0.43337293]
[1730606800724,0.512189,68429.0,68428.0,0.47696195]
[1730606802002,0.512189,68429.0,68428.0,0.49875216]
[1730606802208,0.512189,68429.0,68428.0,0.43337293]
[1730606802433,0.512189,68429.0,68428.0,0.43336661]
[1730606803085,0.512189,68429.0,68428.0,0.42607204]
[1730606803305,0.512189,68429.0,68428.0,0.43336664]
[1730606803706,0.512189,68429.0,68428.0,0.43836664]
[1730606803920,0.512189,68429.0,68428.0,0.50374587]
[1730606804119,0.512189,68429.0,68428.0,0.68641169]
[1730606804334,0.512189,68429.0,68428.0,0.68841169]
[1730606804540,0.512189,68429.0,68428.0,0.60123161]
[1730606804749,0.512189,68429.0,68428.0,0.71020671]
[1730606805163,0.512189,68429.0,68428.0,0.60123161]
[1730606805973,0.512189,68429.0,68428.0,0.68041669]
[1730606806186,0.512189,68429.0,68428.0,0.60123161]
[1730606806381,0.512189,68429.0,68428.0,0.78931688]
[1730606806587,0.512189,68429.0,68428.0,0.60123096]
[1730606807036,0.512189,68429.0,68428.0,0.61290204]
[1730606807235,0.512189,68429.0,68428.0,0.69208712]
[1730606807456,0.000819,68429.0,68428.0,0.69198156]
[1730606807645,0.000818,68443.0,68442.0,0.166109]
[1730606807784,0.000818,68443.0,68442.0,0.31190604]
[1730606808878,0.000818,68443.0,68442.0,0.33090604]
[1730606810584,0.000818,68443.0,68442.0,0.43090604]
[1730606810819,0.000818,68443.0,68442.0,0.43819999]
[1730606811233,0.0823,68447.0,68442.0,0.43819999]
[1730606811234,0.081936,68447.0,68446.0,0.01]
[1730606811440,0.081936,68447.0,68446.0,0.30189704]
[1730606812166,0.081936,68447.0,68446.0,0.30689704]
[1730606812383,0.081936,68447.0,68446.0,0.38608212]
[1730606812590,0.000819,68449.0,68448.0,0.166096]
[1730606812706,0.000819,68449.0,68448.0,0.31481427]
[1730606812914,0.000819,68449.0,68448.0,0.31189304]
[1730606813117,0.000819,68449.0,68448.0,0.41189304]
[1730606813541,0.000819,68449.0,68448.0,0.41918248]
[1730606813921,0.049119,68449.0,68448.0,0.41918248]
[1730606814128,0.049119,68449.0,68448.0,0.43218248]
[1730606814349,0.125819,68449.0,68448.0,0.43218248]
[1730606815171,0.125819,68449.0,68448.0,0.43818248]
[1730606817017,0.125819,68449.0,68448.0,0.43818894]
[1730606820232,0.125819,68449.0,68448.0,0.43818626]
[1730606821699,0.125819,68449.0,68448.0,0.51737134]
[1730606822810,0.125819,68449.0,68448.0,0.43818626]
[1730606823483,0.125819,68449.0,68448.0,0.43318626]
[1730606824135,0.125819,68449.0,68448.0,0.42018626]
[1730606824523,0.125819,68449.0,68448.0,0.42718626]
[1730606824963,0.125819,68449.0,68448.0,0.42018626]
[1730606825166,0.125819,68449.0,68448.0,0.41418626]
[1730606825583,0.125819,68449.0,68448.0,0.42018626]
[1730606825832,0.125819,68449.0,68448.0,0.42518626]
[1730606826027,0.125819,68449.0,68448.0,0.41789304]
[1730606826226,0.125819,68449.0,68448.0,0.42518608]
[1730606826449,0.000819,68449.0,68448.0,0.43818618]
[1730606826845,0.000819,68449.0,68448.0,0.42518618]
[1730606827261,0.000819,68449.0,68448.0,0.43818618]
[1730606827693,0.000819,68449.0,68448.0,0.43218618]
[1730606827915,0.000819,68449.0,68448.0,0.42489304]
[1730606828123,0.000819,68449.0,68448.0,0.43818671]
[1730606829688,0.000819,68449.0,68448.0,0.43818734]
[1730606830965,0.000819,68449.0,68448.0,0.44018734]
[1730606831221,0.000819,68449.0,68448.0,0.43818734]
[1730606831891,0.000819,68449.0,68448.0,0.41918734]
[1730606832117,0.000819,68449.0,68448.0,0.42518734]
[1730606832379,0.000819,68449.0,68448.0,0.41918734]
[1730606832823,0.000819,68449.0,68448.0,0.42518734]
[1730606833237,0.000819,68449.0,68448.0,0.43819087]
[1730606833711,0.000819,68449.0,68448.0,0.42519087]
[1730606833924,0.000819,68449.0,68448.0,0.43819087]
[1730606836822,0.000819,68449.0,68448.0,0.43819545]
[1730606837048,0.000819,68449.0,68448.0,0.44183934]
[1730606838392,0.125919,68449.0,68448.0,0.44183934]
[1730606839696,0.125919,68449.0,68448.0,0.43683934]
[1730606840627,0.125919,68449.0,68448.0,0.43684345]
[1730606842472,0.125919,68449.0,68448.0,0.43319956]
[1730606844170,0.125919,68449.0,68448.0,0.433198]
[1730606847914,0.125919,68449.0,68448.0,0.43319638]
[1730606848122,0.125919,68449.0,68448.0,0.43319723]
[1730606850328,0.125919,68449.0,68448.0,0.51738231]
[1730606850532,0.000819,68449.0,68448.0,0.52906949]
[1730606850788,0.000819,68449.0,68448.0,0.82821225]
[1730606850976,0.000819,68449.0,68448.0,0.8283026]
[1730606851179,0.000819,68449.0,68448.0,0.72127068]
[1730606851385,0.000819,68449.0,68448.0,0.83032079]
[1730606851578,0.000819,68449.0,68448.0,0.71527068]
[1730606852354,0.000819,68449.0,68448.0,0.70227068]
[1730606852581,1e-08,68450.0,68449.0,0.297344]
[1730606852784,1e-08,68450.0,68449.0,0.6230836]
[1730606854081,0.000818,68451.0,68450.0,0.168092]
[1730606854282,0.000818,68451.0,68450.0,0.62600236]
[1730606854652,0.000818,68451.0,68450.0,0.6230816]
[1730606855632,0.000818,68451.0,68450.0,0.75379638]
[1730606855832,0.000818,68451.0,68450.0,0.6230816]
[1730606856033,0.000818,68451.0,68450.0,0.71378902]
[1730606856257,0.000818,68451.0,68450.0,0.59314442]
[1730606856697,0.000818,68451.0,68450.0,0.41919323]
[1730606856904,0.000818,68451.0,68450.0,0.64550619]
[1730606857146,0.000818,68451.0,68450.0,0.43819323]
[1730606857357,0.000818,68451.0,68450.0,0.43219323]
[1730606857575,0.000818,68451.0,68450.0,0.41919323]
[1730606857783,0.000818,68451.0,68450.0,0.42519323]
[1730606858024,0.000818,68451.0,68450.0,0.41919323]
[1730606858455,0.000818,68451.0,68450.0,0.42519323]
[1730606858693,0.000818,68451.0,68450.0,0.46879168]
[1730606858899,0.000818,68451.0,68450.0,0.42518706]
[1730606859115,0.000818,68451.0,68450.0,0.41788904]
[1730606859353,0.000818,68451.0,68450.0,0.43818734]
[1730606860596,0.000818,68451.0,68450.0,0.43818757]
[1730606861038,0.000818,68451.0,68450.0,0.5035944]
[1730606862105,0.000818,68451.0,68450.0,0.43818757]
[1730606862314,0.000818,68451.0,68450.0,0.48179423]
[1730606862581,0.000818,68451.0,68450.0,0.43818767]
[1730606862805,0.000818,68451.0,68450.0,0.48179433]
[1730606863023,0.000818,68451.0,68450.0,0.43818767]
[1730606863285,0.000818,68451.0,68450.0,0.48179433]
[1730606865847,0.000818,68451.0,68450.0,0.51104433]
[1730606868253,0.000818,68451.0,68450.0,0.46743767]
[1730606868447,0.000818,68451.0,68450.0,0.51106603]
[1730606869561,0.000818,68451.0,68450.0,0.46743767]
[1730606869792,0.000818,68451.0,68450.0,0.6938876]